bitfinex/quotes_BTCUSD_20250908
["timestamp","ask_amount","ask_price","bid_price","bid_amount"]
[1757329095996,0.011,112130.0,112120.0,0.7358705]
[1757329096408,0.011,112130.0,112120.0,0.73562315]
[1757329096611,0.01,112130.0,112120.0,1.04515001]
[1757329096816,0.01,112130.0,112120.0,1.13460883]
[1757329097033,0.01,112130.0,112120.0,1.73980883]
[1757329097266,0.01,112130.0,112120.0,2.51348666]
[1757329097475,0.01,112130.0,112120.0,2.54027119]
[1757329097675,0.01,112130.0,112120.0,2.23074433]
[1757329098248,0.01,112130.0,112120.0,2.54027119]
[1757329098632,0.01,112130.0,112120.0,2.27707119]
[1757329098834,0.01,112130.0,112120.0,2.23557022]
[1757329099094,0.01,112130.0,112120.0,2.31560618]
[1757329099643,0.01,112130.0,112120.0,2.31460618]
[1757329099893,0.01,112130.0,112120.0,2.31260618]
[1757329100150,0.01,112130.0,112120.0,2.31760618]
[1757329102350,0.01,112130.0,112120.0,2.31560618]
[1757329102800,0.01,112130.0,112120.0,2.31760618]
[1757329103414,0.01,112130.0,112120.0,2.23757022]
[1757329103859,0.01,112130.0,112120.0,2.50077022]
[1757329105302,0.01,112130.0,112120.0,2.56462636]
[1757329109968,0.01,112130.0,112120.0,2.2550995]
[1757329112514,0.01,112130.0,112120.0,2.1054195]
[1757329112729,0.01,112130.0,112120.0,2.2549395]
[1757329115414,0.01,112130.0,112120.0,1.63588578]
[1757329115610,0.01,112130.0,112120.0,2.2549395]
[1757329119236,0.01,112130.0,112120.0,2.1054195]
[1757329119477,0.01,112130.0,112120.0,2.2548995]
[1757329120407,0.01,112130.0,112120.0,2.19104336]
[1757329121469,0.01,112130.0,112120.0,2.27107932]
[1757329125367,0.00038133,112130.0,112120.0,2.27107932]
[1757329125606,0.00038133,112130.0,112120.0,2.27103932]
[1757329126413,8.025e-05,112130.0,112120.0,2.27103932]
[1757329126626,8.025e-05,112130.0,112120.0,2.30271328]
[1757329130004,8.025e-05,112130.0,112120.0,2.61224014]
[1757329130237,8.025e-05,112130.0,112120.0,2.30271328]
[1757329134239,8.025e-05,112130.0,112120.0,2.51687328]
[1757329135358,8.025e-05,112130.0,112120.0,2.36743328]
[1757329135572,3.96e-06,112130.0,112120.0,2.51687328]
[1757329136425,0.30952686,112160.0,112150.0,0.17833259]
[1757329136630,0.48784355,112160.0,112150.0,0.40502928]
[1757329136850,0.48784355,112160.0,112150.0,0.55442928]
[1757329137459,0.30952686,112160.0,112150.0,0.55442928]
[1757329137689,0.30952686,112160.0,112150.0,0.55455275]
[1757329137819,0.48784355,112160.0,112150.0,0.55455275]
[1757329138267,0.17831669,112160.0,112150.0,0.55455275]
[1757329138508,0.48784355,112160.0,112150.0,0.55455275]
[1757329139130,0.17831669,112160.0,112150.0,0.55455275]
[1757329139366,0.49301355,112160.0,112150.0,0.55455275]
[1757329139619,0.48999355,112160.0,112150.0,0.55455275]
[1757329140410,0.49301355,112160.0,112150.0,0.37409016]
[1757329140650,0.80254041,112160.0,112150.0,0.06864347]
[1757329140893,0.80254041,112160.0,112150.0,0.39637606]
[1757329141093,0.49301355,112160.0,112150.0,0.21804347]
[1757329141757,0.49301355,112160.0,112150.0,0.21904347]
[1757329142201,0.49301355,112160.0,112150.0,0.22004347]
[1757329145038,0.18348669,112160.0,112150.0,0.39837606]
[1757329145253,0.49301355,112160.0,112150.0,0.39837606]
[1757329146861,0.00517,112160.0,112150.0,0.40050606]
[1757329147106,0.49579974,112160.0,112150.0,0.40050606]
[1757329147298,0.49301355,112160.0,112150.0,0.40050606]
[1757329147919,0.49301355,112160.0,112150.0,0.22004347]
[1757329149283,0.49301355,112160.0,112150.0,0.39837606]
[1757329151053,0.49301355,112160.0,112150.0,0.40050606]
[1757329153953,0.49301355,112160.0,112150.0,0.39837606]
[1757329155071,0.49301355,112160.0,112150.0,0.40050606]
[1757329156419,0.49290609,112160.0,112150.0,0.40050606]
[1757329159405,0.48988609,112160.0,112150.0,0.40050606]
[1757329159855,0.18046669,112160.0,112150.0,0.40050606]
[1757329161939,0.18339669,112160.0,112150.0,0.40050606]
[1757329162427,0.49281609,112160.0,112150.0,0.40050606]
[1757329162962,0.49281609,112160.0,112150.0,0.39837606]
[1757329163936,0.49281609,112160.0,112150.0,0.22004347]
[1757329164477,0.18339669,112160.0,112150.0,0.22004347]
[1757329164705,0.49281609,112160.0,112150.0,0.22004347]
[1757329167150,0.49281609,112160.0,112150.0,0.15152347]
[1757329169840,0.18339669,112160.0,112150.0,0.15152347]
[1757329170072,0.49281609,112160.0,112150.0,0.15152347]
[1757329176574,0.49281609,112160.0,112150.0,0.00212347]
[1757329176786,0.64209609,112160.0,112150.0,0.00212347]
[1757329177645,0.73209609,112160.0,112150.0,0.00212347]
[1757329181242,0.42267669,112160.0,112150.0,0.00212347]
[1757329181451,0.73209609,112160.0,112150.0,0.00212347]
[1757329182507,0.42267669,112160.0,112150.0,0.00212347]
[1757329182714,0.73209609,112160.0,112150.0,0.00212347]
[1757329186843,0.75887916,112160.0,112150.0,0.00212347]
[1757329187342,0.75887916,112160.0,112150.0,0.00112347]
[1757329187694,0.75887916,112160.0,112150.0,0.00012347]
[1757329192509,0.48775199,112150.0,112140.0,0.14886347]
[1757329192714,0.49089199,112150.0,112140.0,0.14890347]
[1757329192911,0.49304199,112150.0,112140.0,0.14890347]
[1757329194474,0.49304199,112150.0,112140.0,0.14990347]
[1757329194683,0.50304199,112150.0,112140.0,0.15090347]
[1757329200434,0.19362259,112150.0,112140.0,0.00204]
[1757329200809,0.50304199,112150.0,112140.0,0.00204]
[1757329201675,0.52982669,112150.0,112140.0,0.00204]
[1757329203720,0.22040729,112150.0,112140.0,0.00204]
[1757329203924,0.52982669,112150.0,112140.0,0.00204]
[1757329204903,0.52453669,112150.0,112140.0,0.00406]
[1757329205127,0.21511729,112150.0,112140.0,0.00406]
[1757329205351,0.21511729,112150.0,112140.0,0.00728]
[1757329206951,0.21511729,112150.0,112140.0,0.00406]
[1757329207368,0.52453669,112150.0,112140.0,0.00406]
[1757329208368,0.21511729,112150.0,112140.0,0.00406]
[1757329208568,0.21511729,112150.0,112140.0,0.00728]
[1757329208768,0.18833259,112150.0,112140.0,0.00728]
[1757329208983,0.18833259,112150.0,112140.0,0.09919599]
[1757329209188,0.50304199,112150.0,112140.0,0.24513599]
[1757329210293,0.50304199,112150.0,112140.0,0.24311599]
[1757329211144,0.50304199,112150.0,112140.0,0.09395599]
[1757329211400,0.50304199,112150.0,112140.0,0.24311599]
[1757329211615,0.50304199,112150.0,112140.0,0.09395599]
[1757329212023,0.19362259,112150.0,112140.0,0.09395599]
[1757329212236,0.50304199,112150.0,112140.0,0.09395599]
[1757329213058,0.50304199,112150.0,112140.0,0.09597599]
[1757329213479,0.50304199,112150.0,112140.0,0.00204]
[1757329213707,0.53443447,112150.0,112140.0,0.00204]
[1757329213889,0.56121917,112150.0,112140.0,0.00204]
[1757329214119,0.25179977,112150.0,112140.0,0.00204]
[1757329214318,0.56121917,112150.0,112140.0,0.00204]
[1757329214528,0.56121917,112150.0,112140.0,4e-05]
[1757329214737,0.52982669,112150.0,112140.0,4e-05]
[1757329215612,0.52982669,112150.0,112140.0,0.00104]
[1757329215927,0.52982669,112150.0,112140.0,0.00204]
[1757329216107,0.67898669,112150.0,112140.0,0.00406]
[1757329216560,0.67898669,112150.0,112140.0,0.00204]
[1757329218427,0.67910439,112150.0,112140.0,0.00204]
[1757329218735,0.36956729,112150.0,112140.0,0.00204]
[1757329218965,0.67910439,112150.0,112140.0,0.00204]
[1757329219152,0.76910439,112150.0,112140.0,0.00204]
[1757329220340,1.07864149,112150.0,112140.0,0.00204]
[1757329220746,1.11003397,112150.0,112140.0,0.00204]
[1757329220950,0.17836439,112130.0,112120.0,0.0267847]
[1757329221138,0.17836439,112130.0,112110.0,0.76158892]
[1757329221139,0.1783803,112120.0,112110.0,0.76158892]
[1757329221505,0.8024845,112120.0,112110.0,0.8392516]
[1757329221757,0.4929474,112120.0,112110.0,0.74185091]
[1757329221972,0.4929474,112120.0,112110.0,0.73970091]
[1757329222185,0.8024845,112120.0,112110.0,0.0091661]
[1757329222395,0.17839621,112110.0,112100.0,0.02678857]
[1757329222597,0.17839621,112110.0,112100.0,0.09191599]
[1757329222598,0.33332365,112110.0,112100.0,0.09191599]
[1757329222814,0.17841213,112100.0,112090.0,0.55790261]
[1757329223026,0.48999923,112100.0,112090.0,0.67661244]
[1757329223237,0.49297923,112100.0,112090.0,0.67661244]
[1757329223442,0.17842804,112090.0,112080.0,0.14956]
[1757329223654,0.48796514,112090.0,112080.0,0.26827324]
[1757329223852,0.48796514,112090.0,112080.0,0.67042324]
[1757329224087,0.48796514,112090.0,112080.0,0.67933044]
[1757329226341,0.48796514,112090.0,112080.0,0.68033044]
[1757329226544,0.17842804,112090.0,112080.0,1.19222032]
[1757329226777,0.17842804,112090.0,112080.0,0.70423926]
[1757329227213,0.17842804,112090.0,112080.0,0.70523926]
[1757329228782,0.17906294,112090.0,112080.0,0.70523926]
[1757329229972,0.17906294,112090.0,112080.0,0.30523926]
[1757329230401,0.17906294,112090.0,112080.0,0.70523926]
[1757329230591,0.17856294,112090.0,112080.0,0.70523926]
[1757329230848,0.49015004,112090.0,112080.0,0.28133044]
[1757329230996,0.49313004,112090.0,112080.0,0.27242324]
[1757329231194,0.49313004,112090.0,112080.0,0.02919725]
[1757329231413,0.49313004,112090.0,112080.0,0.17835725]
[1757329231740,0.66908907,112090.0,112080.0,0.0024]
[1757329232322,0.66908907,112090.0,112080.0,0.0014]
[1757329232539,0.35955197,112090.0,112080.0,0.0004]
[1757329232752,0.66908907,112090.0,112080.0,0.0004]
[1757329236854,1.00237617,112090.0,112080.0,0.0004]
[1757329237269,0.38330197,112090.0,112080.0,0.0004]
[1757329237476,1.00237617,112090.0,112080.0,0.0004]
[1757329238270,1.0429005,112090.0,112080.0,0.0004]
[1757329238731,1.0419005,112090.0,112080.0,0.0004]
[1757329239565,1.0429005,112090.0,112080.0,0.0004]
[1757329240289,1.13481649,112090.0,112080.0,0.0004]
[1757329240516,1.0429005,112090.0,112080.0,0.0004]
[1757329240954,1.0439005,112090.0,112080.0,0.0004]
[1757329241862,0.4248263,112090.0,112080.0,0.0004]
[1757329242001,1.0439005,112090.0,112080.0,0.0004]
[1757329242427,0.4248263,112090.0,112080.0,0.0004]
[1757329242895,1.0439005,112090.0,112080.0,0.0004]
[1757329243105,0.4010763,112090.0,112080.0,0.0004]
[1757329243269,0.5614534,112090.0,112080.0,0.0004]
[1757329243481,0.7106134,112090.0,112080.0,0.0004]
[1757329245769,0.79234481,112090.0,112080.0,0.0004]
[1757329245944,1.10188191,112090.0,112080.0,0.0004]
[1757329246145,1.0201505,112090.0,112080.0,0.0004]
[1757329248750,0.5614534,112090.0,112080.0,0.0004]
[1757329248985,1.0439005,112090.0,112080.0,0.0004]
[1757329249219,1.07501712,112090.0,112080.0,0.0004]
[1757329254037,1.0439005,112090.0,112080.0,0.0004]
[1757329254457,0.4248263,112090.0,112080.0,0.0004]
[1757329254659,1.0439005,112090.0,112080.0,0.0004]
[1757329256156,0.8947405,112090.0,112080.0,0.0004]
[1757329256365,0.85521617,112090.0,112080.0,0.0004]
[1757329256513,0.52192907,112090.0,112080.0,0.0004]
[1757329256731,0.52192907,112090.0,112080.0,0.00254]
[1757329257077,0.66605907,112090.0,112080.0,0.00254]
[1757329257282,0.66821907,112090.0,112080.0,0.00254]
[1757329257461,0.67144907,112090.0,112080.0,0.00254]
[1757329257926,0.67144907,112090.0,112080.0,0.0004]
[1757329258330,0.36191197,112090.0,112080.0,0.0004]
[1757329258534,0.67144907,112090.0,112080.0,0.0004]
[1757329261278,0.64465004,112090.0,112080.0,0.0004]
[1757329261693,0.33511294,112090.0,112080.0,0.0004]
[1757329261902,0.64465004,112090.0,112080.0,0.0004]
[1757329266078,0.64461004,112090.0,112080.0,0.0004]
[1757329273969,0.33507294,112090.0,112080.0,0.0004]
[1757329274188,0.95414714,112090.0,112080.0,0.0004]
[1757329274418,0.64461004,112090.0,112080.0,0.0004]
[1757329276287,0.95414714,112090.0,112080.0,0.0004]
[1757329276755,0.98526376,112090.0,112080.0,0.0004]
[1757329277675,1.01023376,112090.0,112080.0,0.0004]
[1757329277901,1.41168685,112090.0,112080.0,0.0004]
[1757329278122,1.10214975,112090.0,112080.0,0.0004]
[1757329278576,1.10302467,112090.0,112080.0,0.0004]
[1757329279045,1.01110868,112090.0,112080.0,0.0004]
[1757329279518,1.10110868,112090.0,112080.0,0.0004]
[1757329279794,1.16190805,112090.0,112080.0,0.0004]
[1757329280683,1.07190805,112090.0,112080.0,0.0004]
[1757329282685,1.075442,112090.0,112080.0,0.0004]
[1757329283106,1.10415709,112090.0,112080.0,0.0004]
[1757329283305,0.95507709,112090.0,112080.0,0.0004]
[1757329283545,1.075442,112090.0,112080.0,0.0004]
[1757329284163,0.76546744,112090.0,112080.0,0.0004]
[1757329284391,0.85546744,112090.0,112080.0,0.0004]
[1757329285668,1.165442,112090.0,112080.0,0.0004]
[1757329285825,0.85546744,112090.0,112080.0,0.0004]
[1757329292495,0.76546744,112090.0,112080.0,0.0004]
[1757329293163,0.83402744,112090.0,112080.0,0.0004]
[1757329294425,0.92402744,112090.0,112080.0,0.0004]
[1757329294737,0.77494744,112090.0,112080.0,0.0004]
[1757329294948,0.89905744,112090.0,112080.0,0.0004]
[1757329295911,1.209032,112090.0,112080.0,0.0004]
[1757329297615,1.232242,112090.0,112080.0,0.0004]
[1757329298458,1.083162,112090.0,112080.0,0.0004]
[1757329298734,1.232242,112090.0,112080.0,0.0004]
[1757329299438,1.572242,112090.0,112080.0,0.0004]
[1757329300459,1.571242,112090.0,112080.0,0.0004]
[1757329300924,1.573242,112090.0,112080.0,0.0004]
[1757329301360,1.571242,112090.0,112080.0,0.0004]
[1757329301557,1.570242,112090.0,112080.0,0.0004]
[1757329301757,1.572242,112090.0,112080.0,0.0004]
[1757329301936,1.572202,112090.0,112080.0,0.0004]
[1757329302146,1.573202,112090.0,112080.0,0.0004]
[1757329302784,1.66511799,112090.0,112080.0,0.0004]
[1757329302972,0.80321288,112090.0,112080.0,0.0004]
[1757329303186,1.572202,112090.0,112080.0,0.0004]
[1757329303387,1.573202,112090.0,112080.0,0.0004]
[1757329306403,1.424162,112090.0,112080.0,0.0004]
[1757329306618,1.573202,112090.0,112080.0,0.0004]
[1757329306823,1.424162,112090.0,112080.0,0.0004]
[1757329307041,1.573202,112090.0,112080.0,0.0004]
[1757329313052,0.95325288,112090.0,112080.0,0.0004]
[1757329313275,1.573202,112090.0,112080.0,0.0004]
[1757329315900,1.424162,112090.0,112080.0,0.0004]
[1757329316104,1.549992,112090.0,112080.0,0.0004]
[1757329317600,0.93004288,112090.0,112080.0,0.0004]
[1757329317808,1.549992,112090.0,112080.0,0.0004]
[1757329319255,1.459992,112090.0,112080.0,0.0004]
[1757329323689,1.5317444,112090.0,112080.0,0.0004]
[1757329324119,1.459992,112090.0,112080.0,0.0004]
[1757329324455,1.549992,112090.0,112080.0,0.0004]
[1757329326568,1.60374862,112090.0,112080.0,1e-08]
[1757329328007,1.51374862,112090.0,112080.0,1e-08]
[1757329328222,1.482632,112090.0,112080.0,1e-08]
[1757329328958,1.56317258,112090.0,112080.0,1e-08]
[1757329329537,1.482632,112090.0,112080.0,1e-08]
[1757329335475,1.477242,112090.0,112080.0,1e-08]
[1757329336510,1.52745476,112090.0,112080.0,1e-08]
[1757329336699,1.49652499,112090.0,112080.0,1e-08]
[1757329340353,1.50167499,112090.0,112080.0,1e-08]
[1757329340610,1.81179241,112090.0,112080.0,1e-08]
[1757329340827,1.9037084,112090.0,112080.0,1e-08]
[1757329342710,1.7546684,112090.0,112080.0,1e-08]
[1757329345147,1.9036684,112090.0,112080.0,1e-08]
[1757329347590,1.7546684,112090.0,112080.0,1e-08]
[1757329347842,1.9036684,112090.0,112080.0,1e-08]
[1757329349164,1.7546684,112090.0,112080.0,1e-08]
[1757329349397,1.9036284,112090.0,112080.0,1e-08]
[1757329350499,0.17845989,112070.0,112060.0,0.0002]
[1757329350703,0.95025268,112070.0,112060.0,0.0002]
[1757329350949,0.94955425,112070.0,112060.0,0.0002]
[1757329351163,0.95274425,112070.0,112060.0,0.0002]
[1757329351586,0.97955231,112070.0,112060.0,0.0002]
[1757329352002,0.98865769,112070.0,112060.0,0.0002]
[1757329352257,0.98865769,112070.0,112060.0,0.0012]
[1757329353968,0.98865769,112070.0,112060.0,0.0022]
[1757329354269,0.36861333,112070.0,112060.0,0.0022]
[1757329354592,1.06464652,112070.0,112060.0,0.0022]
[1757329355403,1.05725769,112070.0,112060.0,0.0022]
[1757329357010,1.04815231,112070.0,112060.0,0.0022]
[1757329357557,1.05732483,112070.0,112060.0,0.0022]
[1757329358373,0.43728047,112070.0,112060.0,0.0022]
[1757329358552,1.05732483,112070.0,112060.0,0.0022]
[1757329359423,1.04815231,112070.0,112060.0,0.0022]
[1757329364530,1.13815231,112070.0,112060.0,0.0012]
[1757329364984,1.04815231,112070.0,112060.0,0.0012]
[1757329365914,1.04915231,112070.0,112060.0,0.0002]
[1757329367284,1.05115231,112070.0,112060.0,0.0002]
[1757329368701,1.45309048,112070.0,112060.0,1e-08]
[1757329368937,1.57593624,112070.0,112060.0,1e-08]
[1757329369165,1.59858624,112070.0,112060.0,1e-08]
[1757329371217,1.59858624,112070.0,112050.0,1e-08]
[1757329371218,1.95952506,112070.0,112050.0,1e-08]
[1757329371433,1.35220702,112060.0,112050.0,1e-08]
[1757329371649,1.34941834,112060.0,112050.0,1e-08]
[1757329371862,1.35452834,112060.0,112050.0,1e-08]
[1757329372066,1.38134222,112060.0,112050.0,1e-08]
[1757329372685,1.38142452,112060.0,112050.0,1e-08]
[1757329373981,1.23246452,112060.0,112050.0,1e-08]
[1757329374195,1.47334051,112060.0,112050.0,1e-08]
[1757329377523,1.38142452,112060.0,112050.0,1e-08]
[1757329378744,1.41235429,112060.0,112050.0,1e-08]
[1757329382403,0.1785236,112030.0,112020.0,1e-08]
[1757329382600,0.1785236,112030.0,112020.0,0.31324219]
[1757329382835,0.1785236,112030.0,112020.0,0.00524001]
[1757329383082,0.17850767,112040.0,112020.0,0.9643399]
[1757329383308,0.17850767,112040.0,112030.0,0.40515817]
[1757329383546,0.17850767,112040.0,112030.0,0.09513599]
[1757329383790,0.17850767,112040.0,112030.0,0.09715599]
[1757329384007,0.18129685,112040.0,112030.0,0.09715599]
[1757329384893,0.17850767,112040.0,112030.0,0.09715599]
[1757329386760,0.48852985,112040.0,112030.0,0.09815599]
[1757329388357,0.48852985,112040.0,112030.0,0.09915599]
[1757329389795,0.79855203,112040.0,112030.0,0.09915599]
[1757329393386,0.79855203,112040.0,112030.0,0.00724]
[1757329393657,0.80366203,112040.0,112030.0,0.00402]
[1757329393896,0.80060203,112040.0,112030.0,0.00402]
[1757329394110,0.17850767,112040.0,112030.0,0.00724]
[1757329394326,0.80134121,112040.0,112030.0,0.00724]
[1757329394542,0.79855203,112040.0,112030.0,0.00724]
[1757329394971,0.79855203,112040.0,112030.0,0.00624]
[1757329396399,0.79855203,112040.0,112030.0,0.00524]
[1757329396665,0.79855203,112040.0,112030.0,0.00202]
[1757329397767,0.94843203,112040.0,112030.0,0.00202]
[1757329399258,0.94843203,112040.0,112030.0,0.00524]
[1757329400559,0.63850587,112040.0,112030.0,0.00202]
[1757329401103,0.63850587,112040.0,112030.0,0.00527]
[1757329401633,0.63850587,112040.0,112030.0,0.00202]
[1757329405496,0.32838767,112040.0,112030.0,0.00527]
[1757329405693,0.63850587,112040.0,112030.0,0.00527]
[1757329405903,0.63850587,112040.0,112030.0,0.00202]
[1757329406656,0.63850587,112040.0,112030.0,0.00527]
[1757329407113,0.32838767,112040.0,112030.0,0.00527]
[1757329407328,0.63850587,112040.0,112030.0,0.00527]
[1757329410884,0.32838767,112040.0,112030.0,0.00527]
[1757329411094,0.63850587,112040.0,112030.0,0.00202]
[1757329411974,0.64062587,112040.0,112030.0,0.00202]
[1757329412758,0.63850587,112040.0,112030.0,0.00202]
[1757329413384,0.64368587,112040.0,112030.0,0.00202]
[1757329413599,0.1785236,112030.0,112020.0,1e-08]
[1757329413812,0.49143123,112030.0,112020.0,0.095166]
[1757329414020,0.1785236,112030.0,112020.0,0.097186]
[1757329414206,0.49143123,112030.0,112020.0,0.097186]
[1757329414436,0.4886418,112030.0,112020.0,0.097186]
[1757329415355,0.4886418,112030.0,112020.0,0.098186]
[1757329416219,0.1785236,112030.0,112020.0,0.099186]
[1757329416440,0.1785236,112030.0,112020.0,0.34185624]
[1757329416647,0.1785236,112030.0,112020.0,0.1633167]
[1757329416871,0.1785236,112030.0,112020.0,0.34185624]
[1757329417324,0.1785236,112030.0,112020.0,0.1633167]
[1757329417657,0.1785236,112030.0,112020.0,0.74185624]
[1757329419291,0.1785236,112030.0,112020.0,0.5633167]
[1757329419478,0.1785236,112030.0,112020.0,0.7138367]
[1757329419975,0.1785236,112030.0,112020.0,0.5633167]
[1757329420163,0.1785236,112030.0,112020.0,0.7138367]
[1757329420713,0.4886418,112030.0,112020.0,0.3138367]
[1757329421040,0.4886418,112030.0,112020.0,0.7138367]
[1757329422104,0.1785236,112030.0,112020.0,0.7138367]
[1757329422321,0.4886418,112030.0,112020.0,0.7138367]
[1757329423194,0.4886418,112030.0,112020.0,0.74064722]
[1757329424072,0.4886418,112030.0,112020.0,0.34064722]
[1757329424615,0.4886418,112030.0,112020.0,0.74064722]
[1757329425175,0.1785236,112030.0,112020.0,0.74064722]
[1757329427210,0.1785236,112030.0,112020.0,0.91918676]
[1757329427437,0.1785236,112030.0,112020.0,0.74064722]
[1757329427786,0.1785236,112030.0,112020.0,0.91918676]
[1757329428439,0.1785236,112030.0,112020.0,0.74064722]
[1757329428657,0.1785236,112030.0,112020.0,0.91918676]
[1757329429977,0.1785236,112030.0,112020.0,0.98778676]
[1757329433860,0.55422612,112050.0,112020.0,0.98778676]
[1757329433861,0.21422612,112050.0,112030.0,0.1785236]
[1757329434083,0.20530154,112050.0,112040.0,0.42586366]
[1757329434301,0.17849174,112050.0,112040.0,0.42586366]
[1757329434703,0.17849174,112050.0,112040.0,0.45266866]
[1757329435141,0.17849174,112050.0,112040.0,0.27416099]
[1757329435360,0.17849174,112050.0,112040.0,0.45266866]
[1757329435619,0.17849174,112050.0,112040.0,0.85266866]
[1757329435850,0.17849174,112050.0,112040.0,0.67416099]
[1757329436115,0.17849174,112050.0,112040.0,0.52376099]
[1757329436364,0.48860994,112050.0,112040.0,0.67424099]
[1757329436622,0.48860994,112050.0,112040.0,0.67416099]
[1757329437376,0.48960994,112050.0,112040.0,0.67416099]
[1757329438406,0.48960994,112050.0,112040.0,0.52376099]
[1757329438601,0.48960994,112050.0,112040.0,0.67416099]
[1757329438818,0.48860994,112050.0,112040.0,0.67416099]
[1757329439013,0.48860994,112050.0,112040.0,0.27416099]
[1757329439669,0.48860994,112050.0,112040.0,0.67416099]
[1757329440260,0.48860994,112050.0,112040.0,0.27416099]
[1757329441206,0.48960994,112050.0,112040.0,0.27416099]
[1757329441493,0.48960994,112050.0,112040.0,0.24735599]
[1757329441951,0.80505814,112050.0,112040.0,0.15238]
[1757329442377,0.49493994,112050.0,112040.0,0.15238]
[1757329443551,0.64549994,112050.0,112040.0,0.00206]
[1757329443755,0.95561814,112050.0,112040.0,0.15056]
[1757329445196,0.95561814,112050.0,112040.0,0.15262]
[1757329445586,0.64016994,112050.0,112040.0,0.15262]
[1757329445914,0.48960994,112050.0,112040.0,0.15262]
[1757329446129,0.48960994,112050.0,112040.0,0.1556]
[1757329446130,0.17949174,112050.0,112040.0,0.1556]
[1757329446341,0.17949174,112050.0,112040.0,0.24751599]
[1757329449219,0.48960994,112050.0,112040.0,0.24751599]
[1757329449430,0.48960994,112050.0,112040.0,0.24453599]
[1757329449895,0.48960994,112050.0,112040.0,0.24751599]
[1757329454931,0.17949174,112050.0,112040.0,0.24751599]
[1757329455979,0.17949174,112050.0,112040.0,0.09695599]
[1757329456201,0.49239887,112050.0,112040.0,0.09397599]
[1757329456430,0.48960994,112050.0,112040.0,0.24457599]
[1757329457056,0.49493994,112050.0,112040.0,0.15266]
[1757329457273,0.48960994,112050.0,112040.0,0.15266]
[1757329457514,0.17949174,112050.0,112040.0,0.15266]
[1757329457714,0.48960994,112050.0,112040.0,0.15266]
[1757329460611,0.49170994,112050.0,112040.0,0.00206]
[1757329460832,0.80505814,112050.0,112040.0,0.15052]
[1757329461758,0.1785236,112030.0,112020.0,0.75014918]
[1757329461977,0.1785236,112030.0,112020.0,0.99454517]
[1757329462436,0.48861611,112030.0,112020.0,0.99454517]
[1757329463259,0.48861611,112030.0,112020.0,0.99458517]
[1757329463466,0.48861611,112030.0,112020.0,0.93032579]
[1757329464498,0.1785236,112030.0,112020.0,0.93032579]
[1757329465630,0.1785236,112030.0,112020.0,0.93132579]
[1757329466610,0.1785236,112030.0,112020.0,0.93332579]
[1757329467723,0.1785236,112030.0,112020.0,0.99747379]
[1757329469736,0.48861611,112030.0,112020.0,0.99747379]
[1757329469941,0.1785236,112030.0,112020.0,0.99747379]
[1757329470155,0.48861611,112030.0,112020.0,0.99747379]
[1757329470349,0.48861611,112030.0,112020.0,1.26067379]
[1757329472544,0.1785236,112030.0,112020.0,1.26067379]
[1757329472763,0.48861611,112030.0,112020.0,1.26067379]
[1757329479666,0.48861611,112030.0,112020.0,1.07321091]
[1757329479874,0.48861611,112030.0,112020.0,1.25175045]
[1757329480084,0.48861611,112030.0,112020.0,1.046404]
[1757329480350,0.48861611,112030.0,112020.0,1.043384]
[1757329480974,0.48861611,112030.0,112020.0,0.646404]
[1757329481420,0.48861611,112030.0,112020.0,1.046404]
[1757329482141,0.48861611,112030.0,112020.0,0.783204]
[1757329482703,0.48861611,112030.0,112020.0,0.780184]
[1757329483300,0.49394611,112030.0,112020.0,0.311264]
[1757329483502,0.49394611,112030.0,112020.0,0.246996]
[1757329484317,0.49071611,112030.0,112020.0,0.246996]
[1757329485055,0.48861611,112030.0,112020.0,0.246996]
[1757329485470,0.1785236,112030.0,112020.0,0.246996]
[1757329485694,0.49140554,112030.0,112020.0,0.250016]
[1757329485850,0.48861611,112030.0,112020.0,0.250016]
[1757329486266,0.48861611,112030.0,112020.0,0.246996]
[1757329488938,0.48861611,112030.0,112020.0,0.250016]
[1757329492905,0.48861611,112030.0,112020.0,0.246996]
[1757329494675,0.48861611,112030.0,112020.0,0.250126]
[1757329498607,0.57861611,112030.0,112020.0,0.250126]
[1757329499342,0.48861611,112030.0,112020.0,0.250126]
[1757329501347,0.48861611,112030.0,112020.0,0.246996]
[1757329501552,0.48861611,112030.0,112020.0,0.096876]
[1757329501970,0.49372611,112030.0,112020.0,0.27364784]
[1757329502400,0.49372611,112030.0,112020.0,0.12368784]
[1757329502612,0.49372611,112030.0,112020.0,0.27364784]
[1757329502861,0.49073611,112030.0,112020.0,0.27364784]
[1757329503072,0.48861611,112030.0,112020.0,0.27364784]
[1757329503534,0.48861611,112030.0,112020.0,0.27677784]
[1757329503772,0.57861611,112030.0,112020.0,0.27677784]
[1757329503978,0.2685236,112030.0,112020.0,0.27677784]
[1757329504219,0.57861611,112030.0,112020.0,0.27677784]
[1757329505284,0.2685236,112030.0,112020.0,0.27677784]
[1757329505501,0.09,112030.0,112020.0,0.78634871]
[1757329505719,0.18741632,112050.0,112030.0,0.1785236]
[1757329505932,0.18741632,112050.0,112040.0,0.73575617]
[1757329506154,0.21422658,112050.0,112040.0,0.73575617]
[1757329506383,0.21422658,112050.0,112040.0,0.24715599]
[1757329506586,0.49750883,112050.0,112040.0,0.24715599]
[1757329507197,0.49750883,112050.0,112040.0,0.27396103]
[1757329507355,0.49850883,112050.0,112040.0,0.27396103]
[1757329507571,0.18941632,112050.0,112040.0,0.27396103]
[1757329508160,0.18841632,112050.0,112040.0,0.27396103]
[1757329509736,0.18841632,112050.0,112040.0,0.67396103]
[1757329510523,0.18941632,112050.0,112040.0,0.67396103]
[1757329510679,0.18941632,112050.0,112040.0,1.16256121]
[1757329511862,0.18941632,112050.0,112040.0,1.01256121]
[1757329512053,0.18941632,112050.0,112040.0,1.16252121]
[1757329512498,0.18941632,112050.0,112040.0,0.98401354]
[1757329512710,0.18941632,112050.0,112040.0,1.16252121]
[1757329512924,0.002,112050.0,112040.0,1.44666003]
[1757329513159,0.002,112050.0,112040.0,1.75675254]
[1757329513373,0.002,112050.0,112040.0,1.67106054]
[1757329513605,0.002,112050.0,112040.0,1.82098054]
[1757329514203,0.001,112050.0,112040.0,1.82098054]
[1757329514608,8.23e-05,112060.0,112050.0,0.19943056]
[1757329514810,8.23e-05,112060.0,112050.0,0.86463906]
[1757329515016,8.23e-05,112060.0,112050.0,0.86987906]
[1757329515218,8.23e-05,112060.0,112050.0,1.26987906]
[1757329515448,0.17855811,112060.0,112050.0,1.26987906]
[1757329515622,0.17855811,112060.0,112050.0,1.41979906]
[1757329515787,0.17955811,112060.0,112050.0,1.44660087]
[1757329516198,0.17955811,112060.0,112050.0,1.29668087]
[1757329516398,0.17955811,112060.0,112050.0,1.44656087]